[Event "LTU-chT 2020"]
[Site "Vilnius"]
[Date "2020.09.25"]
[Round "3.10"]
[White "Bastys, Robertas"]
[Black "Posaskov, Nikita"]
[Result "1-0"]
[ECO "B50"]
[WhiteElo "2232"]
[BlackElo "1745"]
[Annotator "NA"]
[PlyCount "57"]
[EventDate "2020.09.25"]
[EventType "team-tourn"]
[EventCountry "LTU"]
[SourceTitle "playchess.com"]
[Source "ChessBase"]
[SourceQuality "1"]
[TimeControl "40/5400+30:1800+30"]

1. e4 {[%emt 0:00:00]} c5 {[%emt 0:00:00]} 2. Nf3 {[%emt 0:00:00]} d6 {[%emt 0:00:00]} 3. g3 {[%emt 0:00:21]} Nf6 {[%emt 0:01:24]} 4. d3 {[%emt 0:00:50]} g6 {[%emt 0:00:24]} 5. Bg2 {[%emt 0:00:10]} Bg7 {[%emt 0:00:32]} 6. O-O {[%emt 0:00:06]} O-O {[%emt 0:00:29]} 7. c3 {[%emt 0:00:26]} Nc6 {[%emt 0:03:57]} 8. Qe2 {[%emt 0:01:37]} e5 {[%emt 0:01:53]} 9. a3 {[%emt 0:09:08]} a6 {[%emt 0:09:20]} 10. b4 {[%emt 0:01:21]} b5 {[%emt 0:01:34]} 11. Be3 {[%emt 0:07:03]} Qe7 {[%emt 0:01:34]} 12. Nbd2 {[%emt 0:10:41]} a5 {[%emt 0:07:22]} 13. bxc5 {[%emt 0:12:25]} dxc5 {[%emt 0:00:46]} 14. Nb3 {[%emt 0:03:22]} Nd7 {[%emt 0:00:14]} 15. Bg5 {[%emt 0:06:14]} f6 {[%emt 0:01:53]} 16. Be3 {[%emt 0:00:36]} Ba6 {[%emt 0:04:12]} 17. Bh3 {[%emt 0:02:00]} f5 {[%emt 0:10:59]} 18. exf5 {[%emt 0:05:07]} gxf5 {[%emt 0:06:20]} 19. Nh4 {[%emt 0:00:24]} a4 {[%emt 0:08:14]} 20. Nd2 {[%emt 0:06:37]} f4 {[%emt 0:03:13]} 21. Bxd7 {[%emt 0:01:03]} Qxd7 {[%emt 0:00:04]} 22. Bxc5 {[%emt 0:00:13]} Rfd8 {[%emt 0:00:02]} 23. Ne4 {[%emt 0:03:49]} Qxd3 {[%emt 0:01:51]} 24. Qxd3 {[%emt 0:08:19]} Rxd3 {[%emt 0:00:13]} 25. Nf5 {[%emt 0:00:57]} Bf8 {[%emt 0:20:50]} 26. Rfd1 {[%emt 0:01:31]} Rxd1+ {[%emt 0:04:04]} 27. Rxd1 {[%emt 0:00:01]} fxg3 {[%emt 0:03:07]} 28. hxg3 {[%emt 0:01:53]} Bc8 {[%emt 0:04:16]} 29. Nfd6 {[%emt 0:01:49]} 1-0

[Event "LTU-chT 2020"]
[Site "Vilnius"]
[Date "2020.09.26"]
[Round "4.1"]
[White "Laurusas, Tomas"]
[Black "Chocenka, Dmitrijus"]
[Result "1-0"]
[ECO "E62"]
[WhiteElo "2503"]
[BlackElo "2333"]
[Annotator "ChessBase"]
[PlyCount "109"]
[EventDate "2020.09.25"]
[EventType "team-tourn"]
[EventCountry "LTU"]
[SourceTitle "playchess.com"]
[Source "ChessBase"]
[SourceQuality "1"]
[TimeControl "40/5400+30:1800+30"]

1. d4 {[%emt 0:00:00]} Nf6 {[%emt 0:00:00]} 2. c4 {[%emt 0:00:00]} g6 {[%emt 0:00:00]} 3. g3 {[%emt 0:00:00]} Bg7 {[%emt 0:00:00]} 4. Bg2 {[%emt 0:00:00]} d6 {[%emt 0:00:00]} 5. Nf3 {[%emt 0:00:06]} O-O {[%emt 0:00:01]} 6. O-O {[%emt 0:00:06]} Nc6 {[%emt 0:00:04]} 7. Nc3 {[%emt 0:00:31]} Bf5 {[%emt 0:00:05]} 8. Ne1 {[%emt 0:00:27]} Qd7 {[%emt 0:00:26]} 9. e4 {[%emt 0:10:40]} Bh3 {[%emt 0:01:13]} 10. Nc2 {[%emt 0:00:34]} Bxg2 {[%emt 0:03:26]} 11. Kxg2 {[%emt 0:00:45]} e5 {[%emt 0:01:11]} 12. d5 {[%emt 0:02:17]} Ne7 {[%emt 0:00:17]} 13. b4 {[%emt 0:09:31]} Nh5 {[%emt 0:03:39]} 14. Be3 {[%emt 0:13:52]} f5 {[%emt 0:03:04]} 15. exf5 {[%emt 0:00:06]} Nxf5 {[%emt 0:02:39]} 16. Ne4 {[%emt 0:00:26]} h6 {[%emt 0:04:09]} 17. f3 {[%emt 0:10:29]} Rf7 {[%emt 0:04:04]} 18. Qd3 {[%emt 0:06:21]} Raf8 {[%emt 0:01:35]} 19. Rad1 {[%emt 0:04:08]} Kh8 {[%emt 0:17:54]} 20. c5 {[%emt 0:04:30]} a6 {[%emt 0:05:39]} 21. Rf2 {[%emt 0:18:35]} Kh7 {[%emt 0:07:24]} 22. Rdf1 {[%emt 0:06:48]} Ne7 {[%emt 0:17:21]} 23. Rd2 {[%emt 0:01:52]} Nf6 {[%emt 0:03:02]} 24. Nc3 {[%emt 0:02:14]} Nh5 {[%emt 0:05:07]} 25. Qc4 {[%emt 0:00:17]} Nf5 {[%emt 0:01:55]} 26. Ne4 {[%emt 0:02:24]} Nf6 {[%emt 0:02:23]} 27. Nc3 {[%emt 0:00:41]} Nh5 {[%emt 0:01:27]} 28. Rdf2 {[%emt 0:00:12]} Ne7 {[%emt 0:01:56]} 29. a4 {[%emt 0:00:16]} Nf6 {[%emt 0:00:42]} 30. Rd1 {[%emt 0:00:55]} Kh8 {[%emt 0:04:15]} 31. b5 {[%emt 0:00:34]} axb5 {[%emt 0:00:07]} 32. axb5 {[%emt 0:00:02]} g5 {[%emt 0:00:27]} 33. Rdf1 {[%emt 0:02:56]} b6 {[%emt 0:01:48]} 34. cxb6 {[%emt 0:02:19]} cxb6 {[%emt 0:00:01]} 35. Nb4 {[%emt 0:00:05]} Nf5 {[%emt 0:00:28]} 36. Qd3 {[%emt 0:00:01]} e4 {[%emt 0:06:05]} 37. Nxe4 {[%emt 0:00:58]} Nxe3+ {[%emt 0:00:20]} 38. Qxe3 {[%emt 0:00:05]} Qxb5 {[%emt 0:00:11]} 39. Nxf6 {[%emt 0:01:03]} Rxf6 {[%emt 0:00:21]} 40. Rb1 {[%emt 0:00:37]} Rf5 {[%emt 0:01:46]} 41. Qe4 {[%emt 0:30:45]} Qc5 {[%emt 0:33:23]} 42. Nc6 {[%emt 0:01:16]} R5f7 {[%emt 0:00:00]} 43. Ne7 {[%emt 0:00:00]} Rb8 {[%emt 0:00:00]} 44. Ng6+ {[%emt 0:00:00]} Kg8 {[%emt 0:00:00]} 45. Rc2 {[%emt 0:00:00]} Qa3 {[%emt 0:00:00]} 46. Ne7+ {[%emt 0:00:00]} Kf8 {[%emt 0:00:00]} 47. Ng6+ {[%emt 0:00:00]} Kg8 {[%emt 0:00:00]} 48. Rbc1 {[%emt 0:00:00]} Bf6 {[%emt 0:00:00]} 49. Rc7 {[%emt 0:00:00]} Rxc7 {[%emt 0:00:00]} 50. Rxc7 {[%emt 0:00:00]} Qb2+ {[%emt 0:00:00]} 51. Kh3 {[%emt 0:00:00]} Bg7 {[%emt 0:00:00]} 52. Qe6+ {[%emt 0:00:00]} Kh7 {[%emt 0:00:00]} 53. Qf5 {[%emt 0:00:00]} Kg8 {[%emt 0:00:00]} 54. Ne7+ {[%emt 0:00:00]} Kh8 {[%emt 0:00:00]} 55. Rc8+ {[%emt 0:00:00]} 1-0

[Event "LTU-chT 2020"]
[Site "Vilnius"]
[Date "2020.09.26"]
[Round "4.2"]
[White "Limontas, Martynas"]
[Black "Pultinevicius, Paulius"]
[Result "1/2-1/2"]
[ECO "B11"]
[WhiteElo "2301"]
[BlackElo "2510"]
[Annotator "ChessBase"]
[PlyCount "62"]
[EventDate "2020.09.25"]
[EventType "team-tourn"]
[EventCountry "LTU"]
[SourceTitle "playchess.com"]
[Source "ChessBase"]
[SourceQuality "1"]
[TimeControl "40/5400+30:1800+30"]

1. e4 {[%emt 0:00:00]} c6 {[%emt 0:00:00]} 2. Nc3 {[%emt 0:00:00]} d5 {[%emt 0:00:00]} 3. Nf3 {[%emt 0:00:00]} Bg4 {[%emt 0:00:00]} 4. h3 {[%emt 0:00:00]} Bxf3 {[%emt 0:00:00]} 5. Qxf3 {[%emt 0:00:00]} e6 {[%emt 0:00:00]} 6. g3 {[%emt 0:00:13]} Nd7 {[%emt 0:01:03]} 7. d4 {[%emt 0:02:31]} Qb6 {[%emt 0:00:54]} 8. exd5 {[%emt 0:00:59]} cxd5 {[%emt 0:00:38]} 9. Qd3 {[%emt 0:01:03]} Ngf6 {[%emt 0:05:40]} 10. Bg2 {[%emt 0:01:52]} Bd6 {[%emt 0:00:12]} 11. O-O {[%emt 0:00:06]} O-O {[%emt 0:00:04]} 12. Ne2 {[%emt 0:05:47]} Rfc8 {[%emt 0:02:05]} 13. c3 {[%emt 0:00:39]} h6 {[%emt 0:00:07]} 14. Kh1 {[%emt 0:03:37]} Rab8 {[%emt 0:00:24]} 15. Rb1 {[%emt 0:03:14]} Qc6 {[%emt 0:10:23]} 16. Bf4 {[%emt 0:02:05]} Bxf4 {[%emt 0:00:38]} 17. Nxf4 {[%emt 0:00:06]} b5 {[%emt 0:00:24]} 18. Qd2 {[%emt 0:03:03]} a5 {[%emt 0:07:17]} 19. Nd3 {[%emt 0:04:47]} Ne4 {[%emt 0:04:21]} 20. Qe1 {[%emt 0:02:27]} Qc4 {[%emt 0:11:13]} 21. Bxe4 {[%emt 0:03:17]} dxe4 {[%emt 0:00:18]} 22. Qxe4 {[%emt 0:00:03]} Qxa2 {[%emt 0:00:08]} 23. Ra1 {[%emt 0:01:35]} Qc4 {[%emt 0:00:06]} 24. Kg2 {[%emt 0:08:21]} a4 {[%emt 0:05:28]} 25. Qf3 {[%emt 0:03:29]} Rd8 {[%emt 0:05:02]} 26. Rfe1 {[%emt 0:01:15]} Rbc8 {[%emt 0:02:58]} 27. Nb4 {[%emt 0:06:41]} Nf6 {[%emt 0:01:16]} 28. Re5 {[%emt 0:00:57]} Nd7 {[%emt 0:16:17]} 29. Re2 {[%emt 0:16:15]} Nf6 {[%emt 0:00:23]} 30. Re5 {[%emt 0:00:11]} Nd7 {[%emt 0:02:51]} 31. Re2 {[%emt 0:00:05]} Nf6 {[%emt 0:02:14]} 1/2-1/2

[Event "LTU-chT 2020"]
[Site "Vilnius"]
[Date "2020.09.26"]
[Round "4.3"]
[White "Krivonosov, Oleg"]
[Black "Mickevicius, Juras"]
[Result "1/2-1/2"]
[ECO "A05"]
[WhiteElo "2381"]
[BlackElo "2277"]
[Annotator "ChessBase"]
[PlyCount "95"]
[EventDate "2020.09.25"]
[EventType "team-tourn"]
[EventCountry "LTU"]
[SourceTitle "playchess.com"]
[Source "ChessBase"]
[SourceQuality "1"]
[TimeControl "40/5400+30:1800+30"]

1. Nf3 {[%emt 0:00:00]} Nf6 {[%emt 0:00:00]} 2. c4 {[%emt 0:00:00]} e6 {[%emt 0:00:00]} 3. g3 {[%emt 0:00:00]} d5 {[%emt 0:00:00]} 4. d4 {[%emt 0:00:04]} dxc4 {[%emt 0:00:31]} 5. Qa4+ {[%emt 0:00:10]} Nbd7 {[%emt 0:00:06]} 6. Bg2 {[%emt 0:00:28]} a6 {[%emt 0:00:15]} 7. Nc3 {[%emt 0:00:28]} Rb8 {[%emt 0:00:13]} 8. Qxc4 {[%emt 0:00:09]} b5 {[%emt 0:00:24]} 9. Qd3 {[%emt 0:00:10]} Bb7 {[%emt 0:00:03]} 10. O-O {[%emt 0:00:34]} c5 {[%emt 0:00:18]} 11. dxc5 {[%emt 0:00:18]} Bxc5 {[%emt 0:00:29]} 12. Bf4 {[%emt 0:00:22]} Rc8 {[%emt 0:00:03]} 13. Rad1 {[%emt 0:00:52]} O-O {[%emt 0:02:02]} 14. Ne5 {[%emt 0:00:26]} Bxg2 {[%emt 0:00:07]} 15. Kxg2 {[%emt 0:00:10]} Nxe5 {[%emt 0:00:54]} 16. Bxe5 {[%emt 0:00:15]} Be7 {[%emt 0:00:07]} 17. Qxd8 {[%emt 0:02:14]} Rfxd8 {[%emt 0:00:29]} 18. Rxd8+ {[%emt 0:00:28]} Rxd8 {[%emt 0:00:05]} 19. Rd1 {[%emt 0:00:20]} Rxd1 {[%emt 0:00:53]} 20. Nxd1 {[%emt 0:00:06]} Nd7 {[%emt 0:00:11]} 21. Bc7 {[%emt 0:00:40]} f5 {[%emt 0:01:52]} 22. f3 {[%emt 0:00:44]} Kf7 {[%emt 0:01:51]} 23. Nf2 {[%emt 0:01:15]} Nf6 {[%emt 0:02:47]} 24. Nd3 {[%emt 0:02:24]} Nd5 {[%emt 0:00:45]} 25. Be5 {[%emt 0:01:28]} Nb4 {[%emt 0:02:24]} 26. Nxb4 {[%emt 0:00:27]} Bxb4 {[%emt 0:00:04]} 27. g4 {[%emt 0:08:12]} g6 {[%emt 0:01:25]} 28. Kf2 {[%emt 0:02:14]} Bc5+ {[%emt 0:01:27]} 29. e3 {[%emt 0:01:58]} Ke7 {[%emt 0:01:51]} 30. h3 {[%emt 0:00:29]} Kd7 {[%emt 0:01:19]} 31. Ke2 {[%emt 0:00:37]} Kc6 {[%emt 0:01:05]} 32. Kd3 {[%emt 0:00:35]} Kd5 {[%emt 0:01:00]} 33. Bc3 {[%emt 0:01:17]} e5 {[%emt 0:04:49]} 34. e4+ {[%emt 0:05:20]} fxe4+ {[%emt 0:00:08]} 35. fxe4+ {[%emt 0:00:04]} Ke6 {[%emt 0:00:01]} 36. b3 {[%emt 0:00:25]} Bd6 {[%emt 0:01:39]} 37. a4 {[%emt 0:00:17]} Kd7 {[%emt 0:01:29]} 38. axb5 {[%emt 0:00:45]} axb5 {[%emt 0:00:02]} 39. Bd2 {[%emt 0:01:22]} Ke6 {[%emt 0:00:51]} 40. Ke2 {[%emt 0:00:14]} Bc5 {[%emt 0:00:35]} 41. Bh6 {[%emt 0:30:18]} Bd6 {[%emt 0:30:15]} 42. Kf3 {[%emt 0:00:34]} Bc5 {[%emt 0:00:21]} 43. Bd2 {[%emt 0:00:30]} Bd6 {[%emt 0:00:13]} 44. Be3 {[%emt 0:00:13]} Be7 {[%emt 0:00:05]} 45. Ke2 {[%emt 0:00:14]} Bd6 {[%emt 0:00:20]} 46. Kd3 {[%emt 0:00:12]} Be7 {[%emt 0:01:07]} 47. Kc3 {[%emt 0:00:21]} Bd6 {[%emt 0:00:26]} 48. Kd3 {[%emt 0:00:06]} 1/2-1/2

[Event "LTU-chT 2020"]
[Site "Vilnius"]
[Date "2020.09.26"]
[Round "4.4"]
[White "Bucinskas, Valdas"]
[Black "Vedrickas, Tautvydas"]
[Result "1/2-1/2"]
[ECO "B20"]
[WhiteElo "2262"]
[BlackElo "2399"]
[Annotator "ChessBase"]
[PlyCount "102"]
[EventDate "2020.09.25"]
[EventType "team-tourn"]
[EventCountry "LTU"]
[SourceTitle "playchess.com"]
[Source "ChessBase"]
[SourceQuality "1"]
[TimeControl "40/5400+30:1800+30"]

1. e4 {[%emt 0:00:00]} c5 {[%emt 0:00:56]} 2. b3 {[%emt 0:00:07]} d6 {[%emt 0:05:36]} 3. Bb2 {[%emt 0:00:18]} e5 {[%emt 0:02:41]} 4. Bb5+ {[%emt 0:01:36]} Nd7 {[%emt 0:00:32]} 5. Nc3 {[%emt 0:00:22]} a6 {[%emt 0:05:31]} 6. Bxd7+ {[%emt 0:00:26]} Bxd7 {[%emt 0:00:19]} 7. Nd5 {[%emt 0:07:41]} Nf6 {[%emt 0:03:36]} 8. Nxf6+ {[%emt 0:04:24]} Qxf6 {[%emt 0:00:15]} 9. Qf3 {[%emt 0:00:04]} Qg6 {[%emt 0:01:23]} 10. d3 {[%emt 0:00:07]} Be7 {[%emt 0:05:16]} 11. Ne2 {[%emt 0:15:34]} O-O {[%emt 0:07:44]} 12. Nc3 {[%emt 0:02:26]} Rae8 {[%emt 0:00:52]} 13. O-O {[%emt 0:05:38]} Bh4 {[%emt 0:08:24]} 14. Nd5 {[%emt 0:22:53]} f5 {[%emt 0:03:28]} 15. Qh3 {[%emt 0:11:24]} Bd8 {[%emt 0:07:27]} 16. Ne3 {[%emt 0:00:23]} Rf7 {[%emt 0:16:30]} 17. Nxf5 {[%emt 0:01:51]} Bxf5 {[%emt 0:00:44]} 18. exf5 {[%emt 0:00:03]} Rxf5 {[%emt 0:00:13]} 19. Rae1 {[%emt 0:01:58]} Ref8 {[%emt 0:00:55]} 20. Bc1 {[%emt 0:00:32]} Rf3 {[%emt 0:05:50]} 21. Qd7 {[%emt 0:02:12]} Bh4 {[%emt 0:05:44]} 22. Re2 {[%emt 0:00:35]} R3f7 {[%emt 0:01:57]} 23. Qh3 {[%emt 0:00:18]} Bd8 {[%emt 0:02:39]} 24. Qe3 {[%emt 0:01:27]} Rf4 {[%emt 0:01:00]} 25. Qh3 {[%emt 0:06:21]} Rh4 {[%emt 0:00:34]} 26. Qg3 {[%emt 0:00:07]} Rg4 {[%emt 0:00:54]} 27. Qh3 {[%emt 0:00:04]} Rh4 {[%emt 0:02:02]} 28. Qg3 {[%emt 0:00:05]} Qh5 {[%emt 0:00:18]} 29. Re4 {[%emt 0:00:45]} Rxe4 {[%emt 0:00:17]} 30. dxe4 {[%emt 0:00:04]} Qe2 {[%emt 0:02:51]} 31. Qd3 {[%emt 0:00:27]} Qxd3 {[%emt 0:00:32]} 32. cxd3 {[%emt 0:00:04]} Kf7 {[%emt 0:01:52]} 33. g3 {[%emt 0:02:43]} Ke6 {[%emt 0:00:52]} 34. Be3 {[%emt 0:00:20]} Ba5 {[%emt 0:00:48]} 35. f4 {[%emt 0:01:16]} g6 {[%emt 0:01:58]} 36. fxe5 {[%emt 0:03:13]} Rxf1+ {[%emt 0:00:07]} 37. Kxf1 {[%emt 0:00:03]} Kxe5 {[%emt 0:00:08]} 38. Ke2 {[%emt 0:01:55]} h5 {[%emt 0:01:52]} 39. Bf4+ {[%emt 0:02:08]} Ke6 {[%emt 0:00:01]} 40. h3 {[%emt 0:04:59]} Bc3 {[%emt 0:00:41]} 41. g4 {[%emt 0:30:14]} hxg4 {[%emt 0:32:57]} 42. hxg4 {[%emt 0:00:05]} Be5 {[%emt 0:01:30]} 43. Bd2 {[%emt 0:03:28]} Kd7 {[%emt 0:00:00]} 44. a4 {[%emt 0:00:00]} Kc6 {[%emt 0:00:00]} 45. Be1 {[%emt 0:00:00]} b5 {[%emt 0:00:00]} 46. axb5+ {[%emt 0:00:00]} Kxb5 {[%emt 0:00:00]} 47. Kd1 {[%emt 0:00:00]} Kc6 {[%emt 0:00:00]} 48. Ke2 {[%emt 0:00:00]} Kd7 {[%emt 0:00:00]} 49. Bd2 {[%emt 0:00:00]} Ke6 {[%emt 0:00:00]} 50. Kf3 {[%emt 0:00:00]} Kf6 {[%emt 0:00:00]} 51. Be1 {[%emt 0:00:00]} Ke6 {[%emt 0:00:00]} 1/2-1/2

[Event "LTU-chT 2020"]
[Site "Vilnius"]
[Date "2020.09.26"]
[Round "4.5"]
[White "Sakalauskas, Vaidas"]
[Black "Viskelis, Darius"]
[Result "1/2-1/2"]
[ECO "D32"]
[WhiteElo "2331"]
[BlackElo "2226"]
[Annotator "NA"]
[PlyCount "33"]
[EventDate "2020.09.25"]
[EventType "team-tourn"]
[EventCountry "LTU"]
[SourceTitle "playchess.com"]
[Source "ChessBase"]
[SourceQuality "1"]
[TimeControl "40/5400+30:1800+30"]

1. d4 {[%emt 0:00:00]} d5 {[%emt 0:02:13]} 2. c4 {[%emt 0:00:00]} e6 {[%emt 0:00:17]} 3. Nc3 {[%emt 0:00:02]} c5 {[%emt 0:00:12]} 4. cxd5 {[%emt 0:00:09]} exd5 {[%emt 0:00:16]} 5. Nf3 {[%emt 0:01:01]} Nc6 {[%emt 0:00:28]} 6. dxc5 {[%emt 0:01:33]} d4 {[%emt 0:00:17]} 7. Na4 {[%emt 0:00:10]} Bxc5 {[%emt 0:00:20]} 8. Nxc5 {[%emt 0:00:09]} Qa5+ {[%emt 0:00:18]} 9. Bd2 {[%emt 0:00:07]} Qxc5 {[%emt 0:00:06]} 10. Rc1 {[%emt 0:00:09]} Qb6 {[%emt 0:00:03]} 11. e3 {[%emt 0:00:07]} Nf6 {[%emt 0:00:15]} 12. Bc4 {[%emt 0:16:33]} O-O {[%emt 0:09:05]} 13. O-O {[%emt 0:02:08]} Bg4 {[%emt 0:06:47]} 14. exd4 {[%emt 0:03:06]} Qxb2 {[%emt 0:11:23]} 15. Bc3 {[%emt 0:12:52]} Qa3 {[%emt 0:00:50]} 16. d5 {[%emt 0:02:05]} Rfd8 {[%emt 0:08:57]} 17. Re1 {[%emt 0:33:26]} 1/2-1/2

[Event "LTU-chT 2020"]
[Site "Vilnius"]
[Date "2020.09.26"]
[Round "4.6"]
[White "Indriunas, Matas"]
[Black "Sulskis, Sarunas"]
[Result "1/2-1/2"]
[ECO "C80"]
[WhiteElo "2217"]
[BlackElo "2524"]
[Annotator "ChessBase"]
[PlyCount "109"]
[EventDate "2020.09.25"]
[EventType "team-tourn"]
[EventCountry "LTU"]
[SourceTitle "playchess.com"]
[Source "ChessBase"]
[SourceQuality "1"]
[TimeControl "40/5400+30:1800+30"]

1. e4 {[%emt 0:00:00]} e5 {[%emt 0:01:26]} 2. Nf3 {[%emt 0:00:00]} Nc6 {[%emt 0:00:26]} 3. Bb5 {[%emt 0:00:07]} a6 {[%emt 0:01:05]} 4. Ba4 {[%emt 0:00:15]} Nf6 {[%emt 0:02:38]} 5. O-O {[%emt 0:00:34]} Nxe4 {[%emt 0:00:51]} 6. d4 {[%emt 0:01:20]} b5 {[%emt 0:02:46]} 7. Bb3 {[%emt 0:00:14]} exd4 {[%emt 0:00:57]} 8. Re1 {[%emt 0:02:01]} d5 {[%emt 0:00:38]} 9. Nc3 {[%emt 0:03:24]} Be6 {[%emt 0:06:57]} 10. Nxe4 {[%emt 0:02:27]} dxe4 {[%emt 0:01:01]} 11. Rxe4 {[%emt 0:01:46]} Be7 {[%emt 0:00:36]} 12. Bxe6 {[%emt 0:02:10]} fxe6 {[%emt 0:00:09]} 13. Nxd4 {[%emt 0:17:25]} O-O {[%emt 0:09:38]} 14. Qg4 {[%emt 0:03:20]} Nxd4 {[%emt 0:01:34]} 15. Rxd4 {[%emt 0:00:07]} Qc8 {[%emt 0:00:25]} 16. Re4 {[%emt 0:04:05]} Bf6 {[%emt 0:06:54]} 17. c3 {[%emt 0:03:00]} e5 {[%emt 0:04:28]} 18. Qxc8 {[%emt 0:00:17]} Rfxc8 {[%emt 0:00:19]} 19. Be3 {[%emt 0:01:29]} Rab8 {[%emt 0:04:54]} 20. b3 {[%emt 0:10:03]} Rd8 {[%emt 0:03:04]} 21. Kf1 {[%emt 0:01:12]} h6 {[%emt 0:08:33]} 22. Ke2 {[%emt 0:04:57]} Rd6 {[%emt 0:01:25]} 23. Rd1 {[%emt 0:06:46]} Kf7 {[%emt 0:01:07]} 24. c4 {[%emt 0:01:08]} Rxd1 {[%emt 0:02:22]} 25. Kxd1 {[%emt 0:00:07]} Ke6 {[%emt 0:00:54]} 26. Kc2 {[%emt 0:03:38]} c6 {[%emt 0:04:10]} 27. f3 {[%emt 0:03:11]} g5 {[%emt 0:04:11]} 28. Kc3 {[%emt 0:03:33]} a5 {[%emt 0:04:31]} 29. cxb5 {[%emt 0:01:37]} cxb5 {[%emt 0:00:17]} 30. a4 {[%emt 0:00:28]} Kd5 {[%emt 0:09:03]} 31. axb5 {[%emt 0:05:00]} Rxb5 {[%emt 0:00:57]} 32. Kc2 {[%emt 0:00:26]} Be7 {[%emt 0:04:38]} 33. Bd2 {[%emt 0:01:05]} Bb4 {[%emt 0:06:47]} 34. Bxb4 {[%emt 0:00:41]} axb4 {[%emt 0:00:36]} 35. Kd3 {[%emt 0:00:19]} Ra5 {[%emt 0:02:23]} 36. Rxb4 {[%emt 0:00:31]} Ra2 {[%emt 0:00:09]} 37. Rg4 {[%emt 0:02:49]} Ke6 {[%emt 0:01:26]} 38. h4 {[%emt 0:05:35]} gxh4 {[%emt 0:01:09]} 39. Rxh4 {[%emt 0:00:08]} Rxg2 {[%emt 0:00:26]} 40. Rxh6+ {[%emt 0:00:05]} Kd5 {[%emt 0:01:50]} 41. Rb6 {[%emt 0:30:34]} Rg3 {[%emt 0:31:23]} 42. Rb5+ {[%emt 0:03:53]} Kc6 {[%emt 0:00:13]} 43. Rxe5 {[%emt 0:00:13]} Rxf3+ {[%emt 0:00:12]} 44. Kc4 {[%emt 0:00:23]} Rf4+ {[%emt 0:00:11]} 45. Kc3 {[%emt 0:00:06]} Rh4 {[%emt 0:00:12]} 46. Re8 {[%emt 0:00:48]} Kb6 {[%emt 0:01:35]} 47. Rd8 {[%emt 0:00:17]} Rh1 {[%emt 0:00:36]} 48. Kc4 {[%emt 0:00:15]} Rh6 {[%emt 0:00:23]} 49. Rd4 {[%emt 0:00:38]} Rg6 {[%emt 0:00:10]} 50. Rh4 {[%emt 0:00:14]} Rf6 {[%emt 0:00:12]} 51. b4 {[%emt 0:00:10]} Rg6 {[%emt 0:00:13]} 52. b5 {[%emt 0:00:05]} Rf6 {[%emt 0:00:53]} 53. Kb4 {[%emt 0:00:27]} Rg6 {[%emt 0:00:11]} 54. Rf4 {[%emt 0:00:27]} Rh6 {[%emt 0:00:23]} 55. Rg4 {[%emt 0:00:08]} 1/2-1/2

[Event "LTU-chT 2020"]
[Site "Vilnius"]
[Date "2020.09.26"]
[Round "4.7"]
[White "Bieliauskas, Marius"]
[Black "Zilakauskis, Steponas"]
[Result "1-0"]
[ECO "A67"]
[WhiteElo "2207"]
[BlackElo "1808"]
[Annotator "ChessBase"]
[PlyCount "69"]
[EventDate "2020.09.25"]
[EventType "team-tourn"]
[EventCountry "LTU"]
[SourceTitle "playchess.com"]
[Source "ChessBase"]
[SourceQuality "1"]
[TimeControl "40/5400+30:1800+30"]

1. d4 {[%emt 0:00:00]} Nf6 {[%emt 0:00:00]} 2. c4 {[%emt 0:00:00]} c5 {[%emt 0:00:01]} 3. d5 {[%emt 0:00:00]} e6 {[%emt 0:00:19]} 4. Nc3 {[%emt 0:00:00]} exd5 {[%emt 0:00:36]} 5. cxd5 {[%emt 0:00:00]} d6 {[%emt 0:00:27]} 6. e4 {[%emt 0:00:00]} g6 {[%emt 0:00:24]} 7. f4 {[%emt 0:00:00]} Bg7 {[%emt 0:00:08]} 8. Bb5+ {[%emt 0:00:04]} Nfd7 {[%emt 0:00:39]} 9. Be2 {[%emt 0:00:13]} O-O {[%emt 0:07:50]} 10. Nf3 {[%emt 0:00:12]} Re8 {[%emt 0:04:55]} 11. O-O {[%emt 0:00:37]} Na6 {[%emt 0:04:27]} 12. Kh1 {[%emt 0:01:30]} Nc7 {[%emt 0:08:48]} 13. a4 {[%emt 0:03:39]} Rb8 {[%emt 0:07:38]} 14. Nd2 {[%emt 0:04:35]} Nf6 {[%emt 0:06:52]} 15. Bf3 {[%emt 0:00:42]} a6 {[%emt 0:07:22]} 16. Nc4 {[%emt 0:01:00]} b5 {[%emt 0:04:05]} 17. axb5 {[%emt 0:00:25]} axb5 {[%emt 0:08:49]} 18. Nxd6 {[%emt 0:01:17]} Qxd6 {[%emt 0:00:08]} 19. e5 {[%emt 0:00:02]} Rxe5 {[%emt 0:13:01]} 20. fxe5 {[%emt 0:00:23]} Qxe5 {[%emt 0:00:07]} 21. Qe1 {[%emt 0:08:30]} Qd6 {[%emt 0:07:00]} 22. Ne4 {[%emt 0:02:36]} Nxe4 {[%emt 0:00:06]} 23. Qxe4 {[%emt 0:00:06]} Be5 {[%emt 0:00:57]} 24. Re1 {[%emt 0:27:22]} f6 {[%emt 0:02:26]} 25. Be3 {[%emt 0:04:48]} Bf5 {[%emt 0:06:39]} 26. Qh4 {[%emt 0:00:19]} g5 {[%emt 0:05:44]} 27. Qf2 {[%emt 0:01:17]} Bxh2 {[%emt 0:00:45]} 28. Bxc5 {[%emt 0:04:27]} Qf4 {[%emt 0:00:15]} 29. Bd1 {[%emt 0:03:10]} Bg3 {[%emt 0:03:23]} 30. Qxf4 {[%emt 0:00:17]} gxf4 {[%emt 0:00:03]} 31. Re7 {[%emt 0:01:21]} Rc8 {[%emt 0:00:37]} 32. d6 {[%emt 0:01:55]} Nd5 {[%emt 0:00:43]} 33. Bb3 {[%emt 0:03:37]} Rxc5 {[%emt 0:00:43]} 34. Ra8+ {[%emt 0:00:58]} Bc8 {[%emt 0:00:19]} 35. Rc7 {[%emt 0:00:28]} 1-0